[Event "Titled Tuesday Blitz August 09 Early 2022"]
[White "Djokic, Mihailo"]
[Black "Livaic, Leon"]
[WhiteFideId "976440"]
[BlackFideId "14531534"]
[WhiteElo "2676"]
[BlackElo "2876"]
[Result "1-0"]
[Round "03"]
[TimeControl "180+1"]
[Date "2022.08.09"]
[WhiteClock "0:01:03"]
[BlackClock "0:00:40"]

1. e4 {[%clk 0:02:59]}  e6 {[%clk 0:02:57]} 2. d4 {[%clk 0:02:56]}  d5 {[%clk 0:02:58]} 3. Nc3 {[%clk 0:02:56]}  Bb4 {[%clk 0:02:58]} 4. e5 {[%clk 0:02:57]}  c5 {[%clk 0:02:58]} 5. a3 {[%clk 0:02:57]}  Bxc3+ {[%clk 0:02:59]} 6. bxc3 {[%clk 0:02:58]}  Ne7 {[%clk 0:03:00]} 7. h4 {[%clk 0:02:58]}  Nbc6 {[%clk 0:03:00]} 8. h5 {[%clk 0:02:59]}  h6 {[%clk 0:03:00]} 9. Nf3 {[%clk 0:02:59]}  Qa5 {[%clk 0:03:00]} 10. Bd2 {[%clk 0:02:59]}  Qa4 {[%clk 0:03:00]} 11. Rh4 {[%clk 0:02:59]}  c4 {[%clk 0:03:00]} 12. Be2 {[%clk 0:02:57]}  Bd7 {[%clk 0:03:00]} 13. Kf1 {[%clk 0:02:57]}  O-O-O {[%clk 0:03:00]} 14. Kg1 {[%clk 0:02:57]}  f6 {[%clk 0:02:47]} 15. Rg4 {[%clk 0:02:48]}  Nf5 {[%clk 0:02:37]} 16. exf6 {[%clk 0:02:45]}  gxf6 {[%clk 0:02:37]} 17. Rg6 {[%clk 0:02:46]}  Rdf8 {[%clk 0:02:30]} 18. g4 {[%clk 0:02:46]}  Nfe7 {[%clk 0:02:29]} 19. Rxh6 {[%clk 0:02:46]}  Rhg8 {[%clk 0:02:26]} 20. Nh4 {[%clk 0:02:40]}  e5 {[%clk 0:02:15]} 21. Be3 {[%clk 0:01:29]}  Rf7 {[%clk 0:01:49]} 22. Ng6 {[%clk 0:01:22]}  Nxg6 {[%clk 0:01:45]} 23. hxg6 {[%clk 0:01:22]}  Rfg7 {[%clk 0:01:44]} 24. dxe5 {[%clk 0:01:21]}  Rxg6 {[%clk 0:01:30]} 25. Qxd5 {[%clk 0:01:14]}  Rxh6 {[%clk 0:00:51]} 26. Qxg8+ {[%clk 0:01:11]}  Kc7 {[%clk 0:00:49]} 27. Bxh6 {[%clk 0:01:11]}  Nxe5 {[%clk 0:00:48]} 28. Bf4 {[%clk 0:01:11]}  Qxc2 {[%clk 0:00:47]} 29. Bxe5+ {[%clk 0:01:11]}  fxe5 {[%clk 0:00:46]} 30. Qxc4+ {[%clk 0:01:11]}  Bc6 {[%clk 0:00:46]} 31. Rd1 {[%clk 0:01:07]}  Qh7 {[%clk 0:00:43]} 32. Bf3 {[%clk 0:01:07]}  e4 {[%clk 0:00:41]} 33. Bxe4 {[%clk 0:01:04]}  Qxe4 {[%clk 0:00:40]} 34. Qxe4 {[%clk 0:01:04]}  Bxe4 {[%clk 0:00:41]} 35. Rd4 {[%clk 0:01:04]}  Bf3 {[%clk 0:00:40]} 36. Kh2 {[%clk 0:01:03]} 1-0


[Site "https://www.chess.com"]

[Event "Titled Tuesday Blitz August 09 Early 2022"]
[White "Donchenko, Alexander"]
[Black "Khabinets, Ivan"]
[WhiteFideId "24603295"]
[BlackFideId "14115980"]
[WhiteElo "2572"]
[BlackElo "2114"]
[Result "1-0"]
[Round "03"]
[TimeControl "180+1"]
[Date "2022.08.09"]
[WhiteClock "0:01:52"]
[BlackClock "0:00:27"]

1. Nf3 {[%clk 0:03:00]}  d5 {[%clk 0:02:57]} 2. d4 {[%clk 0:02:59]}  Nf6 {[%clk 0:02:55]} 3. Bf4 {[%clk 0:02:59]}  e6 {[%clk 0:02:54]} 4. e3 {[%clk 0:02:59]}  Bd6 {[%clk 0:02:53]} 5. Nbd2 {[%clk 0:02:59]}  O-O {[%clk 0:02:53]} 6. Bd3 {[%clk 0:02:59]}  b6 {[%clk 0:02:52]} 7. Qe2 {[%clk 0:02:59]}  a5 {[%clk 0:02:50]} 8. h4 {[%clk 0:02:59]}  Ba6 {[%clk 0:02:49]} 9. h5 {[%clk 0:02:59]}  h6 {[%clk 0:02:47]} 10. O-O-O {[%clk 0:02:58]}  Bxd3 {[%clk 0:02:47]} 11. Qxd3 {[%clk 0:02:58]}  Nc6 {[%clk 0:02:45]} 12. Kb1 {[%clk 0:02:56]}  Nb4 {[%clk 0:02:44]} 13. Qe2 {[%clk 0:02:54]}  c5 {[%clk 0:02:44]} 14. c3 {[%clk 0:02:54]}  Nc6 {[%clk 0:02:44]} 15. Ne5 {[%clk 0:02:49]}  Qc7 {[%clk 0:02:42]} 16. Nxc6 {[%clk 0:02:48]}  Qxc6 {[%clk 0:02:42]} 17. g4 {[%clk 0:02:48]}  cxd4 {[%clk 0:02:29]} 18. Bxd6 {[%clk 0:02:46]}  d3 {[%clk 0:02:22]} 19. Qxd3 {[%clk 0:02:46]}  Qxd6 {[%clk 0:02:22]} 20. Rhg1 {[%clk 0:02:39]}  Nd7 {[%clk 0:02:09]} 21. g5 {[%clk 0:02:38]}  Nc5 {[%clk 0:02:08]} 22. Qd4 {[%clk 0:02:34]}  e5 {[%clk 0:02:06]} 23. Qg4 {[%clk 0:02:29]}  Nd3 {[%clk 0:02:03]} 24. Qf5 {[%clk 0:02:21]}  e4 {[%clk 0:01:59]} 25. f3 {[%clk 0:02:14]}  g6 {[%clk 0:01:56]} 26. gxh6 {[%clk 0:02:08]}  Kh7 {[%clk 0:01:54]} 27. Qg5 {[%clk 0:02:05]}  Qe6 {[%clk 0:01:40]} 28. fxe4 {[%clk 0:02:01]}  dxe4 {[%clk 0:01:41]} 29. Rdf1 {[%clk 0:01:55]}  Rg8 {[%clk 0:00:53]} 30. Nxe4 {[%clk 0:01:54]}  gxh5 {[%clk 0:00:27]} 31. Nf6+ {[%clk 0:01:52]} 1-0


[Site "https://www.chess.com"]

[Event "Titled Tuesday Blitz August 09 Early 2022"]
[White "Dubov, Daniil"]
[Black "Costachi, Mihnea"]
[WhiteFideId "24126055"]
[BlackFideId "1217518"]
[WhiteElo "2993"]
[BlackElo "2706"]
[Result "1-0"]
[Round "03"]
[TimeControl "180+1"]
[Date "2022.08.09"]
[WhiteClock "0:00:06"]
[BlackClock "0:00:03"]

1. e4 {[%clk 0:03:00]}  e5 {[%clk 0:02:58]} 2. Nf3 {[%clk 0:03:01]}  Nc6 {[%clk 0:02:57]} 3. Bb5 {[%clk 0:03:01]}  a6 {[%clk 0:02:56]} 4. Ba4 {[%clk 0:03:00]}  d6 {[%clk 0:02:56]} 5. c3 {[%clk 0:02:59]}  Bd7 {[%clk 0:02:56]} 6. O-O {[%clk 0:02:58]}  g6 {[%clk 0:02:55]} 7. Re1 {[%clk 0:02:51]}  Bg7 {[%clk 0:02:56]} 8. d3 {[%clk 0:02:51]}  Nf6 {[%clk 0:02:54]} 9. Bg5 {[%clk 0:02:49]}  h6 {[%clk 0:02:54]} 10. Bh4 {[%clk 0:02:49]}  O-O {[%clk 0:02:54]} 11. Nbd2 {[%clk 0:02:49]}  b5 {[%clk 0:02:50]} 12. Bb3 {[%clk 0:02:49]}  Na5 {[%clk 0:02:49]} 13. Bc2 {[%clk 0:02:48]}  c5 {[%clk 0:02:50]} 14. Nf1 {[%clk 0:02:48]}  Qc7 {[%clk 0:02:30]} 15. Ne3 {[%clk 0:02:47]}  Be6 {[%clk 0:02:21]} 16. Rc1 {[%clk 0:02:38]}  Nc6 {[%clk 0:02:19]} 17. Bb3 {[%clk 0:02:33]}  Ne7 {[%clk 0:02:10]} 18. Bxf6 {[%clk 0:02:25]}  Bxf6 {[%clk 0:02:03]} 19. Bxe6 {[%clk 0:02:24]}  fxe6 {[%clk 0:02:04]} 20. a4 {[%clk 0:02:21]}  Bg7 {[%clk 0:02:03]} 21. Ra1 {[%clk 0:02:16]}  Kh8 {[%clk 0:01:57]} 22. h4 {[%clk 0:01:58]}  d5 {[%clk 0:01:51]} 23. Ng4 {[%clk 0:01:20]}  Rf4 {[%clk 0:01:42]} 24. Ngh2 {[%clk 0:01:15]}  Raf8 {[%clk 0:01:37]} 25. axb5 {[%clk 0:01:11]}  axb5 {[%clk 0:01:37]} 26. Ra6 {[%clk 0:00:59]}  Qc8 {[%clk 0:01:26]} 27. Rb6 {[%clk 0:00:54]}  c4 {[%clk 0:01:14]} 28. g3 {[%clk 0:00:34]}  R4f7 {[%clk 0:01:07]} 29. Rxb5 {[%clk 0:00:32]}  Qa6 {[%clk 0:01:00]} 30. dxc4 {[%clk 0:00:28]}  dxc4 {[%clk 0:00:59]} 31. Rb4 {[%clk 0:00:28]}  Nc6 {[%clk 0:00:58]} 32. Ra4 {[%clk 0:00:27]}  Qb5 {[%clk 0:00:53]} 33. Ra2 {[%clk 0:00:27]}  Rd8 {[%clk 0:00:48]} 34. Qe2 {[%clk 0:00:23]}  Bf8 {[%clk 0:00:48]} 35. Kg2 {[%clk 0:00:21]}  Bc5 {[%clk 0:00:46]} 36. b4 {[%clk 0:00:21]}  Bb6 {[%clk 0:00:41]} 37. Rd1 {[%clk 0:00:18]}  Rd3 {[%clk 0:00:38]} 38. Rad2 {[%clk 0:00:18]}  Rxc3 {[%clk 0:00:37]} 39. Rd6 {[%clk 0:00:15]}  Nd4 {[%clk 0:00:32]} 40. Nxd4 {[%clk 0:00:15]}  exd4 {[%clk 0:00:33]} 41. Qg4 {[%clk 0:00:12]}  Rf6 {[%clk 0:00:20]} 42. Ra1 {[%clk 0:00:06]}  Bc7 {[%clk 0:00:12]} 43. Ra8+ {[%clk 0:00:05]}  Kh7 {[%clk 0:00:12]} 44. Rda6 {[%clk 0:00:06]}  Qd7 {[%clk 0:00:11]} 45. R6a7 {[%clk 0:00:06]}  d3 {[%clk 0:00:11]} 46. e5 {[%clk 0:00:06]}  d2 {[%clk 0:00:10]} 47. exf6 {[%clk 0:00:05]}  d1=Q {[%clk 0:00:10]} 48. Qxd1 {[%clk 0:00:05]}  Qc6+ {[%clk 0:00:06]} 49. Nf3 {[%clk 0:00:05]}  Rd3 {[%clk 0:00:05]} 50. Qe2 {[%clk 0:00:06]}  h5 {[%clk 0:00:03]} 51. f7 {[%clk 0:00:06]}  Re3 {[%clk 0:00:03]} 52. Qxe3 {[%clk 0:00:06]} 1-0


[Site "https://www.chess.com"]

[Event "Titled Tuesday Blitz August 09 Early 2022"]
[White "Eggleston, Thomas A"]
[Black "Espinosa Veloz, Ermes"]
[WhiteFideId "412139"]
[BlackFideId "3507424"]
[WhiteElo "2155"]
[BlackElo "2333"]
[Result "0-1"]
[Round "03"]
[TimeControl "180+1"]
[Date "2022.08.09"]
[WhiteClock "0:00:04"]
[BlackClock "0:00:42"]

1. e4 {[%clk 0:03:00]}  e5 {[%clk 0:02:59]} 2. f4 {[%clk 0:02:59]}  Nc6 {[%clk 0:02:59]} 3. Nf3 {[%clk 0:02:58]}  d5 {[%clk 0:02:57]} 4. exd5 {[%clk 0:02:58]}  e4 {[%clk 0:02:57]} 5. dxc6 {[%clk 0:02:55]}  exf3 {[%clk 0:02:56]} 6. Qxf3 {[%clk 0:02:54]}  b6 {[%clk 0:02:55]} 7. Nc3 {[%clk 0:02:28]}  Nf6 {[%clk 0:02:54]} 8. d4 {[%clk 0:02:24]}  Bg4 {[%clk 0:02:40]} 9. Qd3 {[%clk 0:02:15]}  Bb4 {[%clk 0:02:32]} 10. Be2 {[%clk 0:02:00]}  O-O {[%clk 0:01:55]} 11. O-O {[%clk 0:01:55]}  Re8 {[%clk 0:01:53]} 12. Bxg4 {[%clk 0:01:50]}  Nxg4 {[%clk 0:01:53]} 13. h3 {[%clk 0:01:50]}  Nf6 {[%clk 0:01:53]} 14. f5 {[%clk 0:01:45]}  Qd6 {[%clk 0:01:45]} 15. Bf4 {[%clk 0:01:31]}  Qxc6 {[%clk 0:01:44]} 16. Be5 {[%clk 0:01:28]}  Bxc3 {[%clk 0:01:38]} 17. bxc3 {[%clk 0:01:26]}  Rad8 {[%clk 0:01:33]} 18. Rae1 {[%clk 0:01:21]}  b5 {[%clk 0:01:23]} 19. Re2 {[%clk 0:01:05]}  Nd5 {[%clk 0:01:20]} 20. Rf3 {[%clk 0:00:40]}  f6 {[%clk 0:01:18]} 21. Bg3 {[%clk 0:00:36]}  Rxe2 {[%clk 0:01:18]} 22. Qxe2 {[%clk 0:00:36]}  Re8 {[%clk 0:01:18]} 23. Qd2 {[%clk 0:00:34]}  Qc4 {[%clk 0:01:16]} 24. a3 {[%clk 0:00:27]}  Re2 {[%clk 0:01:14]} 25. Qc1 {[%clk 0:00:22]}  Nxc3 {[%clk 0:01:09]} 26. Kh1 {[%clk 0:00:19]}  Nd5 {[%clk 0:01:05]} 27. Rf2 {[%clk 0:00:18]}  Re3 {[%clk 0:00:59]} 28. Kh2 {[%clk 0:00:15]}  Qxd4 {[%clk 0:00:53]} 29. Rd2 {[%clk 0:00:13]}  Qc3 {[%clk 0:00:49]} 30. Bh4 {[%clk 0:00:11]}  c6 {[%clk 0:00:47]} 31. Qd1 {[%clk 0:00:08]}  Qe5+ {[%clk 0:00:45]} 32. g3 {[%clk 0:00:05]}  h6 {[%clk 0:00:44]} 33. Kg2 {[%clk 0:00:05]}  Re1 {[%clk 0:00:43]} 34. Kf2 {[%clk 0:00:04]}  Rxd1 {[%clk 0:00:42]} 35. Rxd1 {[%clk 0:00:04]}  Qe3+ {[%clk 0:00:42]} 0-1


[Site "https://www.chess.com"]

[Event "Titled Tuesday Blitz August 09 Early 2022"]
[White "Estrada Nieto, Julian"]
[Black "Sychev, Klementy"]
[WhiteFideId "5101018"]
[BlackFideId "4114060"]
[WhiteElo "2252"]
[BlackElo "2564"]
[Result "0-1"]
[Round "03"]
[TimeControl "180+1"]
[Date "2022.08.09"]
[WhiteClock "0:00:08"]
[BlackClock "0:00:47"]

1. e4 {[%clk 0:03:00]}  c6 {[%clk 0:02:53]} 2. d4 {[%clk 0:03:00]}  d5 {[%clk 0:02:53]} 3. exd5 {[%clk 0:03:00]}  cxd5 {[%clk 0:02:52]} 4. Bd3 {[%clk 0:03:01]}  Nc6 {[%clk 0:02:49]} 5. c3 {[%clk 0:03:01]}  Nf6 {[%clk 0:02:50]} 6. Bf4 {[%clk 0:03:01]}  Bg4 {[%clk 0:02:50]} 7. Qb3 {[%clk 0:02:56]}  Qd7 {[%clk 0:02:48]} 8. Nd2 {[%clk 0:02:56]}  e6 {[%clk 0:02:49]} 9. Ngf3 {[%clk 0:02:56]}  Bd6 {[%clk 0:02:47]} 10. Bxd6 {[%clk 0:02:56]}  Qxd6 {[%clk 0:02:48]} 11. O-O {[%clk 0:02:57]}  O-O {[%clk 0:02:47]} 12. Rfe1 {[%clk 0:02:52]}  Qc7 {[%clk 0:02:40]} 13. a4 {[%clk 0:02:43]}  Rab8 {[%clk 0:02:37]} 14. Ne5 {[%clk 0:02:38]}  Nxe5 {[%clk 0:02:36]} 15. Rxe5 {[%clk 0:02:39]}  Bh5 {[%clk 0:02:32]} 16. h3 {[%clk 0:02:36]}  Bg6 {[%clk 0:02:31]} 17. Bxg6 {[%clk 0:02:36]}  hxg6 {[%clk 0:02:31]} 18. Ree1 {[%clk 0:02:23]}  Rfe8 {[%clk 0:02:24]} 19. Qd1 {[%clk 0:02:17]}  Qf4 {[%clk 0:02:13]} 20. Qe2 {[%clk 0:02:15]}  g5 {[%clk 0:02:03]} 21. g3 {[%clk 0:02:10]}  Qf5 {[%clk 0:02:02]} 22. Nf3 {[%clk 0:02:09]}  Ne4 {[%clk 0:01:58]} 23. Kg2 {[%clk 0:02:06]}  b6 {[%clk 0:01:59]} 24. Nd2 {[%clk 0:02:01]}  Nd6 {[%clk 0:01:58]} 25. Nf3 {[%clk 0:01:27]}  f6 {[%clk 0:01:56]} 26. Rad1 {[%clk 0:01:19]}  b5 {[%clk 0:01:52]} 27. axb5 {[%clk 0:01:17]}  Rxb5 {[%clk 0:01:52]} 28. Ra1 {[%clk 0:01:12]}  Re7 {[%clk 0:01:49]} 29. Ra6 {[%clk 0:01:09]}  Nc4 {[%clk 0:01:41]} 30. b4 {[%clk 0:01:07]}  e5 {[%clk 0:01:40]} 31. Nd2 {[%clk 0:01:01]}  Rbb7 {[%clk 0:01:12]} 32. Nxc4 {[%clk 0:01:00]}  exd4 {[%clk 0:01:12]} 33. Qxe7 {[%clk 0:00:49]}  Rxe7 {[%clk 0:01:11]} 34. Rxe7 {[%clk 0:00:50]}  dxc4 {[%clk 0:01:11]} 35. cxd4 {[%clk 0:00:42]}  c3 {[%clk 0:01:06]} 36. Raxa7 {[%clk 0:00:40]}  Qd5+ {[%clk 0:00:51]} 37. Kf1 {[%clk 0:00:37]}  c2 {[%clk 0:00:47]} 38. Rxg7+ {[%clk 0:00:31]}  Kf8 {[%clk 0:00:47]} 39. Rgc7 {[%clk 0:00:23]}  c1=Q+ {[%clk 0:00:47]} 40. Rxc1 {[%clk 0:00:22]}  Qh1+ {[%clk 0:00:47]} 41. Ke2 {[%clk 0:00:22]}  Qxc1 {[%clk 0:00:48]} 42. Ra2 {[%clk 0:00:08]}  Qc4+ {[%clk 0:00:46]} 43. Kf3 {[%clk 0:00:08]}  Qxa2 {[%clk 0:00:47]} 0-1


[Site "https://www.chess.com"]

[Event "Titled Tuesday Blitz August 09 Early 2022"]
[White "Ezat, Mohamed"]
[Black "Bryakin, Mikhail"]
[WhiteFideId "10600906"]
[BlackFideId "4165314"]
[WhiteElo "2386"]
[BlackElo "2353"]
[Result "0-1"]
[Round "03"]
[TimeControl "180+1"]
[Date "2022.08.09"]
[WhiteClock "0:00:01"]
[BlackClock "0:00:07"]

1. d4 {[%clk 0:02:57]}  f5 {[%clk 0:02:44]} 2. Nc3 {[%clk 0:02:55]}  Nf6 {[%clk 0:02:35]} 3. Bg5 {[%clk 0:02:55]}  d5 {[%clk 0:02:26]} 4. Bxf6 {[%clk 0:02:54]}  exf6 {[%clk 0:02:25]} 5. e3 {[%clk 0:02:54]}  c6 {[%clk 0:02:24]} 6. Bd3 {[%clk 0:02:53]}  Be6 {[%clk 0:02:25]} 7. Qf3 {[%clk 0:02:53]}  g6 {[%clk 0:02:24]} 8. Nge2 {[%clk 0:02:52]}  Bd6 {[%clk 0:02:25]} 9. h3 {[%clk 0:02:52]}  Nd7 {[%clk 0:02:23]} 10. g4 {[%clk 0:02:52]}  fxg4 {[%clk 0:02:22]} 11. hxg4 {[%clk 0:02:52]}  Kf7 {[%clk 0:02:15]} 12. O-O-O {[%clk 0:02:40]}  Qe7 {[%clk 0:02:14]} 13. Rh6 {[%clk 0:02:39]}  Nf8 {[%clk 0:02:11]} 14. Rdh1 {[%clk 0:02:36]}  Qd7 {[%clk 0:02:06]} 15. R1h4 {[%clk 0:02:19]}  Kg7 {[%clk 0:01:57]} 16. Nf4 {[%clk 0:01:39]}  Bxf4 {[%clk 0:01:56]} 17. Qxf4 {[%clk 0:01:39]}  Qe7 {[%clk 0:01:52]} 18. Rh1 {[%clk 0:01:29]}  Re8 {[%clk 0:01:51]} 19. Ne2 {[%clk 0:01:25]}  Bf7 {[%clk 0:01:48]} 20. Qh2 {[%clk 0:01:03]}  Kg8 {[%clk 0:01:31]} 21. Nf4 {[%clk 0:00:51]}  Qc7 {[%clk 0:00:29]} 22. Qh3 {[%clk 0:00:44]}  Re7 {[%clk 0:00:26]} 23. Nxg6 {[%clk 0:00:39]}  Nxg6 {[%clk 0:00:26]} 24. Bxg6 {[%clk 0:00:39]}  Bxg6 {[%clk 0:00:26]} 25. Rxg6+ {[%clk 0:00:39]}  Rg7 {[%clk 0:00:27]} 26. Rxf6 {[%clk 0:00:34]}  Qe7 {[%clk 0:00:28]} 27. Qh6 {[%clk 0:00:24]}  Rxg4 {[%clk 0:00:18]} 28. Rf8+ {[%clk 0:00:18]}  Qxf8 {[%clk 0:00:17]} 29. Qe6+ {[%clk 0:00:19]}  Qf7 {[%clk 0:00:15]} 30. Qxg4+ {[%clk 0:00:19]}  Qg6 {[%clk 0:00:11]} 31. Qc8+ {[%clk 0:00:17]}  Kg7 {[%clk 0:00:10]} 32. Qxb7+ {[%clk 0:00:18]}  Kg8 {[%clk 0:00:11]} 33. Qa8+ {[%clk 0:00:17]}  Kg7 {[%clk 0:00:11]} 34. Qxa7+ {[%clk 0:00:16]}  Kf6 {[%clk 0:00:12]} 35. Qd7 {[%clk 0:00:15]}  h5 {[%clk 0:00:05]} 36. Qxc6+ {[%clk 0:00:14]}  Kg7 {[%clk 0:00:06]} 37. Qd7+ {[%clk 0:00:13]}  Kh6 {[%clk 0:00:06]} 38. Qxd5 {[%clk 0:00:11]}  Rc8 {[%clk 0:00:06]} 39. c3 {[%clk 0:00:11]}  Rf8 {[%clk 0:00:06]} 40. f4 {[%clk 0:00:02]}  Rf5 {[%clk 0:00:06]} 41. Qe4 {[%clk 0:00:01]}  Qf7 {[%clk 0:00:07]} 42. Qf3 {[%clk 0:00:02]}  Qxa2 {[%clk 0:00:06]} 43. Qc6+ {[%clk 0:00:01]}  Kh7 {[%clk 0:00:07]} 0-1


[Site "https://www.chess.com"]

[Event "Titled Tuesday Blitz August 09 Early 2022"]
[White "Fajdetic, Hrvoje"]
[Black "Toncheva, Nadya"]
[WhiteFideId "14501945"]
[BlackFideId "2924056"]
[WhiteElo "2172"]
[BlackElo "1888"]
[Result "0-1"]
[Round "03"]
[TimeControl "180+1"]
[Date "2022.08.09"]
[WhiteClock "0:01:27"]
[BlackClock "0:01:39"]

1. b3 {[%clk 0:02:57]}  c5 {[%clk 0:02:58]} 2. Bb2 {[%clk 0:02:58]}  Nc6 {[%clk 0:02:59]} 3. f4 {[%clk 0:02:58]}  d6 {[%clk 0:02:58]} 4. Nf3 {[%clk 0:02:58]}  e6 {[%clk 0:02:56]} 5. e4 {[%clk 0:02:57]}  Nf6 {[%clk 0:02:54]} 6. d3 {[%clk 0:02:57]}  Be7 {[%clk 0:02:53]} 7. Be2 {[%clk 0:02:57]}  O-O {[%clk 0:02:54]} 8. O-O {[%clk 0:02:57]}  b6 {[%clk 0:02:54]} 9. Qe1 {[%clk 0:02:57]}  Bb7 {[%clk 0:02:54]} 10. Nbd2 {[%clk 0:02:57]}  d5 {[%clk 0:02:53]} 11. e5 {[%clk 0:02:44]}  Ng4 {[%clk 0:02:45]} 12. Bd1 {[%clk 0:02:41]}  d4 {[%clk 0:02:39]} 13. Nc4 {[%clk 0:02:37]}  b5 {[%clk 0:02:37]} 14. h3 {[%clk 0:02:38]}  bxc4 {[%clk 0:02:35]} 15. hxg4 {[%clk 0:02:38]}  cxd3 {[%clk 0:02:31]} 16. cxd3 {[%clk 0:02:36]}  Nb4 {[%clk 0:02:27]} 17. Qd2 {[%clk 0:02:21]}  a5 {[%clk 0:02:25]} 18. a3 {[%clk 0:02:12]}  Nd5 {[%clk 0:02:24]} 19. Ne1 {[%clk 0:02:05]}  Ne3 {[%clk 0:02:08]} 20. Rf2 {[%clk 0:02:03]}  Bh4 {[%clk 0:02:08]} 21. Rf3 {[%clk 0:01:55]}  Bxf3 {[%clk 0:02:07]} 22. Bxf3 {[%clk 0:01:51]}  Rb8 {[%clk 0:01:57]} 23. Nc2 {[%clk 0:01:50]}  Rxb3 {[%clk 0:01:51]} 24. Nxe3 {[%clk 0:01:50]}  dxe3 {[%clk 0:01:50]} 25. Qc2 {[%clk 0:01:45]}  Bf2+ {[%clk 0:01:47]} 26. Kf1 {[%clk 0:01:44]}  Rxd3 {[%clk 0:01:42]} 27. Be4 {[%clk 0:01:37]}  Rd2 {[%clk 0:01:39]} 28. Bxh7+ {[%clk 0:01:27]}  Kh8 {[%clk 0:01:39]} 0-1


[Site "https://www.chess.com"]

[Event "Titled Tuesday Blitz August 09 Early 2022"]
[White "Federzoni, Enzo"]
[Black "Aggelis, Nikolaos"]
[WhiteFideId "2173301"]
[BlackFideId "4213220"]
[WhiteElo "1949"]
[BlackElo "2154"]
[Result "1/2-1/2"]
[Round "03"]
[TimeControl "180+1"]
[Date "2022.08.09"]
[WhiteClock "0:00:44"]
[BlackClock "0:00:13"]

1. e4 {[%clk 0:03:00]}  c5 {[%clk 0:02:58]} 2. c3 {[%clk 0:03:00]}  d5 {[%clk 0:02:57]} 3. exd5 {[%clk 0:02:58]}  Qxd5 {[%clk 0:02:58]} 4. d4 {[%clk 0:02:58]}  Nf6 {[%clk 0:02:56]} 5. Nf3 {[%clk 0:02:58]}  cxd4 {[%clk 0:02:57]} 6. cxd4 {[%clk 0:02:58]}  g6 {[%clk 0:02:50]} 7. Nc3 {[%clk 0:02:56]}  Qd6 {[%clk 0:02:50]} 8. Bc4 {[%clk 0:02:53]}  Bg7 {[%clk 0:02:49]} 9. O-O {[%clk 0:02:30]}  O-O {[%clk 0:02:32]} 10. Ne5 {[%clk 0:02:25]}  Nc6 {[%clk 0:02:28]} 11. Bf4 {[%clk 0:02:17]}  Qxd4 {[%clk 0:02:24]} 12. Nxc6 {[%clk 0:02:16]}  Qxf4 {[%clk 0:02:24]} 13. Nxe7+ {[%clk 0:02:14]}  Kh8 {[%clk 0:02:24]} 14. Nxc8 {[%clk 0:02:13]}  Qxc4 {[%clk 0:02:14]} 15. Nd6 {[%clk 0:02:13]}  Qa6 {[%clk 0:02:08]} 16. Ndb5 {[%clk 0:02:05]}  Rad8 {[%clk 0:02:04]} 17. Qb3 {[%clk 0:02:05]}  Qb6 {[%clk 0:02:02]} 18. a4 {[%clk 0:02:00]}  a6 {[%clk 0:01:55]} 19. a5 {[%clk 0:02:00]}  Qc5 {[%clk 0:01:55]} 20. Na3 {[%clk 0:01:56]}  Qxa5 {[%clk 0:01:35]} 21. Qxb7 {[%clk 0:01:53]}  Rb8 {[%clk 0:01:34]} 22. Qc6 {[%clk 0:01:44]}  Qb6 {[%clk 0:01:29]} 23. Qxb6 {[%clk 0:01:35]}  Rxb6 {[%clk 0:01:30]} 24. Nc4 {[%clk 0:01:35]}  Rc6 {[%clk 0:01:24]} 25. Na5 {[%clk 0:01:32]}  Rd6 {[%clk 0:01:21]} 26. Rfd1 {[%clk 0:01:29]}  Rxd1+ {[%clk 0:01:19]} 27. Rxd1 {[%clk 0:01:30]}  h5 {[%clk 0:01:07]} 28. Rd6 {[%clk 0:01:27]}  Rb8 {[%clk 0:01:06]} 29. b3 {[%clk 0:01:18]}  Ne8 {[%clk 0:01:02]} 30. Rc6 {[%clk 0:01:16]}  Bd4 {[%clk 0:00:51]} 31. Kf1 {[%clk 0:01:12]}  Rb6 {[%clk 0:00:47]} 32. Rxb6 {[%clk 0:01:07]}  Bxb6 {[%clk 0:00:46]} 33. Nc4 {[%clk 0:01:08]}  Bc7 {[%clk 0:00:43]} 34. b4 {[%clk 0:01:08]}  Nd6 {[%clk 0:00:42]} 35. Nxd6 {[%clk 0:01:02]}  Bxd6 {[%clk 0:00:43]} 36. b5 {[%clk 0:01:02]}  axb5 {[%clk 0:00:34]} 37. Nxb5 {[%clk 0:01:02]}  Bc5 {[%clk 0:00:34]} 38. Ke2 {[%clk 0:01:01]}  Kg7 {[%clk 0:00:34]} 39. h3 {[%clk 0:01:01]}  Kf6 {[%clk 0:00:32]} 40. Nc3 {[%clk 0:01:02]}  Ke5 {[%clk 0:00:30]} 41. g3 {[%clk 0:00:54]}  g5 {[%clk 0:00:28]} 42. Nd1 {[%clk 0:00:53]}  f5 {[%clk 0:00:27]} 43. f3 {[%clk 0:00:50]}  Kd4 {[%clk 0:00:25]} 44. Ne3 {[%clk 0:00:50]}  Ke5 {[%clk 0:00:23]} 45. Nc4+ {[%clk 0:00:46]}  Kd4 {[%clk 0:00:22]} 46. Ne3 {[%clk 0:00:47]}  Ke5 {[%clk 0:00:22]} 47. Nc4+ {[%clk 0:00:47]}  Kd5 {[%clk 0:00:23]} 48. Ne3+ {[%clk 0:00:46]}  Bxe3 {[%clk 0:00:22]} 49. Kxe3 {[%clk 0:00:47]}  Kc4 {[%clk 0:00:23]} 50. g4 {[%clk 0:00:44]}  fxg4 {[%clk 0:00:10]} 51. fxg4 {[%clk 0:00:44]}  hxg4 {[%clk 0:00:10]} 52. hxg4 {[%clk 0:00:44]}  Kd5 {[%clk 0:00:11]} 53. Kd3 {[%clk 0:00:44]}  Ke5 {[%clk 0:00:11]} 54. Ke3 {[%clk 0:00:44]}  Kd5 {[%clk 0:00:12]} 55. Kd3 {[%clk 0:00:44]}  Ke5 {[%clk 0:00:12]} 56. Ke3 {[%clk 0:00:44]}  Kd5 {[%clk 0:00:13]} 1/2-1/2


[Site "https://www.chess.com"]

[Event "Titled Tuesday Blitz August 09 Early 2022"]
[White "Fernandez Siles, Luis"]
[Black "Uskov, Artem"]
[WhiteFideId "2209420"]
[BlackFideId "34254854"]
[WhiteElo "2211"]
[BlackElo "2335"]
[Result "0-1"]
[Round "03"]
[TimeControl "180+1"]
[Date "2022.08.09"]
[WhiteClock "0:00:41"]
[BlackClock "0:00:29"]

1. e4 {[%clk 0:03:00]}  Nf6 {[%clk 0:02:55]} 2. Nc3 {[%clk 0:02:59]}  d5 {[%clk 0:02:55]} 3. e5 {[%clk 0:02:59]}  Nfd7 {[%clk 0:02:53]} 4. e6 {[%clk 0:02:44]}  fxe6 {[%clk 0:02:54]} 5. d4 {[%clk 0:02:38]}  c5 {[%clk 0:02:53]} 6. Bd3 {[%clk 0:02:36]}  g6 {[%clk 0:02:51]} 7. f4 {[%clk 0:02:23]}  cxd4 {[%clk 0:02:45]} 8. Nce2 {[%clk 0:02:19]}  Nc6 {[%clk 0:02:41]} 9. Nf3 {[%clk 0:02:16]}  e5 {[%clk 0:02:39]} 10. fxe5 {[%clk 0:02:13]}  Ndxe5 {[%clk 0:02:39]} 11. Nexd4 {[%clk 0:02:12]}  Bg7 {[%clk 0:02:35]} 12. O-O {[%clk 0:02:06]}  Qb6 {[%clk 0:02:17]} 13. c3 {[%clk 0:02:03]}  Nxd3 {[%clk 0:01:58]} 14. Qxd3 {[%clk 0:01:56]}  e5 {[%clk 0:01:58]} 15. Kh1 {[%clk 0:01:34]}  O-O {[%clk 0:01:31]} 16. Nxc6 {[%clk 0:01:31]}  bxc6 {[%clk 0:01:32]} 17. Qe3 {[%clk 0:01:21]}  e4 {[%clk 0:01:26]} 18. Qxb6 {[%clk 0:01:19]}  axb6 {[%clk 0:01:27]} 19. Nd2 {[%clk 0:01:19]}  Ba6 {[%clk 0:01:27]} 20. Re1 {[%clk 0:01:13]}  Rf2 {[%clk 0:01:13]} 21. Nb3 {[%clk 0:00:57]}  Raf8 {[%clk 0:01:08]} 22. Be3 {[%clk 0:00:57]}  Rxb2 {[%clk 0:01:08]} 23. Bxb6 {[%clk 0:00:56]}  Bc4 {[%clk 0:00:52]} 24. Nd4 {[%clk 0:00:52]}  Rxa2 {[%clk 0:00:52]} 25. Rxa2 {[%clk 0:00:52]}  Bxa2 {[%clk 0:00:53]} 26. Nxc6 {[%clk 0:00:47]}  Bxc3 {[%clk 0:00:53]} 27. Ne7+ {[%clk 0:00:43]}  Kf7 {[%clk 0:00:30]} 28. Rf1+ {[%clk 0:00:42]}  Ke8 {[%clk 0:00:29]} 29. Rxf8+ {[%clk 0:00:41]}  Kxf8 {[%clk 0:00:29]} 30. Nxd5 {[%clk 0:00:41]}  Bxd5 {[%clk 0:00:29]} 0-1


[Site "https://www.chess.com"]